[Event "Centenario Panaderia Pulido 2023"]
[Site "San Mateo Gran Canaria"]
[Date "2023.12.08"]
[Round "7.6"]
[White "Garbezza, Davide"]
[Black "Estremera Panos, Sergio"]
[Result "0-1"]
[ECO "A06"]
[WhiteElo "1860"]
[BlackElo "2232"]
[Annotator "RC"]
[PlyCount "76"]
[EventDate "2023.12.04"]
[EventType "swiss"]
[EventCountry "ESP"]
[SourceTitle "playchess.com"]
[Source "ChessBase"]
[SourceQuality "1"]
[TimeControl "5400+30"]

1. Nf3 {[%emt 0:05:23]} d5 {[%emt 0:00:39]} 2. b3 {[%emt 0:00:43]} c5 {[%emt 0:00:40]} 3. e3 {[%emt 0:00:09]} a6 {[%emt 0:01:05]} 4. Bb2 {[%emt 0:00:17]} Nc6 {[%emt 0:00:08]} 5. d4 {[%emt 0:03:03]} cxd4 {[%emt 0:01:19]} 6. exd4 {[%emt 0:01:26]} Bg4 {[%emt 0:03:24]} 7. Nbd2 {[%emt 0:04:14]} Qa5 {[%emt 0:10:18]} 8. a3 {[%emt 0:06:40]} g6 {[%emt 0:01:45]} 9. h3 {[%emt 0:08:15]} Bxf3 {[%emt 0:00:44]} 10. Qxf3 {[%emt 0:00:27]} Bg7 {[%emt 0:06:59]} 11. Qd3 {[%emt 0:03:52]} Nh6 {[%emt 0:15:33]} 12. g4 {[%emt 0:22:07]} e5 {[%emt 0:05:26]} 13. b4 {[%emt 0:08:32]} Qc7 {[%emt 0:12:15]} 14. dxe5 {[%emt 0:02:12]} Nxe5 {[%emt 0:00:02]} 15. Qb3 {[%emt 0:06:04]} O-O {[%emt 0:01:36]} 16. O-O-O {[%emt 0:02:03]} Rac8 {[%emt 0:12:05]} 17. f4 {[%emt 0:03:21]} Nd7 {[%emt 0:00:43]} 18. Bxg7 {[%emt 0:00:59]} Kxg7 {[%emt 0:00:04]} 19. f5 {[%emt 0:02:41]} Qe5 {[%emt 0:01:13]} 20. Qb2 {[%emt 0:03:54]} f6 {[%emt 0:04:49]} 21. Qxe5 {[%emt 0:01:03]} fxe5 {[%emt 0:11:59]} 22. Bg2 {[%emt 0:04:37]} Nb6 {[%emt 0:04:26]} 23. Nf3 {[%emt 0:03:33]} Nf7 {[%emt 0:00:26]} 24. fxg6 {[%emt 0:01:04]} hxg6 {[%emt 0:00:08]} 25. h4 {[%emt 0:00:28]} Rc4 {[%emt 0:00:35]} 26. Bh3 {[%emt 0:03:54]} Rfc8 {[%emt 0:00:46]} 27. Rd2 {[%emt 0:01:03]} Rc3 {[%emt 0:00:32]} 28. g5 {[%emt 0:01:06]} R8c4 {[%emt 0:01:00]} 29. Bg2 {[%emt 0:00:55]} Rxa3 {[%emt 0:00:40]} 30. Kb2 {[%emt 0:00:29]} Re3 {[%emt 0:00:40]} 31. h5 {[%emt 0:00:49]} Rxb4+ {[%emt 0:01:44]} 32. Kc1 {[%emt 0:00:30]} gxh5 {[%emt 0:00:35]} 33. Nh4 {[%emt 0:00:28]} Ra3 {[%emt 0:01:44]} 34. Nf5+ {[%emt 0:00:20]} Kg6 {[%emt 0:00:18]} 35. Rf2 {[%emt 0:00:31]} Ra1+ {[%emt 0:00:19]} 36. Kd2 {[%emt 0:00:02]} Rxh1 {[%emt 0:00:03]} 37. Bxh1 {[%emt 0:00:02]} Kxg5 {[%emt 0:00:36]} 38. Ne7 {[%emt 0:00:29]} Nd6 {[%emt 0:00:29]} 0-1

[Event "Centenario Panaderia Pulido 2023"]
[Site "San Mateo Gran Canaria"]
[Date "2023.12.08"]
[Round "7.7"]
[White "Hernandez Leon, Sergio"]
[Black "Ramos Santana, Marcelino"]
[Result "1-0"]
[ECO "B23"]
[WhiteElo "2167"]
[BlackElo "1830"]
[Annotator "RC"]
[PlyCount "99"]
[EventDate "2023.12.04"]
[EventType "swiss"]
[EventCountry "ESP"]
[SourceTitle "playchess.com"]
[Source "ChessBase"]
[SourceQuality "1"]
[TimeControl "5400+30"]

1. e4 {[%emt 0:00:03]} c5 {[%emt 0:00:36]} 2. Nc3 {[%emt 0:00:06]} g6 {[%emt 0:01:09]} 3. Bc4 {[%emt 0:00:16]} Nc6 {[%emt 0:01:26]} 4. d3 {[%emt 0:00:40]} Bg7 {[%emt 0:00:24]} 5. a3 {[%emt 0:04:06]} a6 {[%emt 0:01:34]} 6. Ba2 {[%emt 0:07:52]} e6 {[%emt 0:04:01]} 7. Nge2 {[%emt 0:01:49]} Nge7 {[%emt 0:01:14]} 8. Be3 {[%emt 0:00:35]} b6 {[%emt 0:00:49]} 9. d4 {[%emt 0:20:20]} cxd4 {[%emt 0:11:34]} 10. Nxd4 {[%emt 0:00:16]} O-O {[%emt 0:00:57]} 11. Qd2 {[%emt 0:07:17]} Qc7 {[%emt 0:05:32]} 12. Nde2 {[%emt 0:12:15]} Bb7 {[%emt 0:01:37]} 13. Rd1 {[%emt 0:00:22]} Rad8 {[%emt 0:02:14]} 14. Qd6 {[%emt 0:09:21]} Qxd6 {[%emt 0:00:12]} 15. Rxd6 {[%emt 0:00:02]} Nc8 {[%emt 0:00:10]} 16. Rd2 {[%emt 0:00:02]} d6 {[%emt 0:07:45]} 17. O-O {[%emt 0:01:22]} b5 {[%emt 0:01:02]} 18. Rfd1 {[%emt 0:02:28]} Rd7 {[%emt 0:00:30]} 19. Nd4 {[%emt 0:03:05]} Nxd4 {[%emt 0:06:01]} 20. Bxd4 {[%emt 0:00:06]} Rfd8 {[%emt 0:00:13]} 21. f4 {[%emt 0:01:37]} Bxd4+ {[%emt 0:06:35]} 22. Rxd4 {[%emt 0:00:25]} Kf8 {[%emt 0:00:04]} 23. f5 {[%emt 0:05:52]} Ke7 {[%emt 0:04:46]} 24. Rf1 {[%emt 0:01:48]} Na7 {[%emt 0:01:57]} 25. Rd3 {[%emt 0:07:57]} Nc6 {[%emt 0:00:58]} 26. fxe6 {[%emt 0:01:25]} fxe6 {[%emt 0:00:51]} 27. Rh3 {[%emt 0:00:53]} Rh8 {[%emt 0:01:38]} 28. Rhf3 {[%emt 0:01:01]} Ne5 {[%emt 0:00:16]} 29. Rf6 {[%emt 0:00:41]} d5 {[%emt 0:01:44]} 30. exd5 {[%emt 0:00:35]} Bxd5 {[%emt 0:00:18]} 31. Bxd5 {[%emt 0:02:58]} exd5 {[%emt 0:00:10]} 32. Rxa6 {[%emt 0:00:07]} Nc4 {[%emt 0:04:52]} 33. b3 {[%emt 0:02:05]} Ne3 {[%emt 0:00:39]} 34. Re1 {[%emt 0:00:09]} d4 {[%emt 0:00:03]} 35. Nxb5 {[%emt 0:00:35]} Kf7 {[%emt 0:02:01]} 36. Nxd4 {[%emt 0:01:05]} Rxd4 {[%emt 0:06:20]} 37. Rxe3 {[%emt 0:00:05]} Rd2 {[%emt 0:00:21]} 38. Ra7+ {[%emt 0:01:04]} Kf6 {[%emt 0:00:16]} 39. Rc7 {[%emt 0:00:09]} Kg5 {[%emt 0:00:44]} 40. h4+ {[%emt 0:03:01]} Kg4 {[%emt 0:04:11]} 41. Rc4+ {[%emt 0:00:45]} Kh5 {[%emt 0:00:21]} 42. Re5+ {[%emt 0:01:00]} Kh6 {[%emt 0:00:16]} 43. Rc7 {[%emt 0:01:02]} Rf8 {[%emt 0:00:30]} 44. Ree7 {[%emt 0:01:09]} Kh5 {[%emt 0:00:02]} 45. Rxh7+ {[%emt 0:01:16]} Kg4 {[%emt 0:00:04]} 46. Rhf7 {[%emt 0:00:20]} Rh8 {[%emt 0:05:03]} 47. Rc4+ {[%emt 0:00:15]} Kh5 {[%emt 0:00:19]} 48. Kh2 {[%emt 0:00:19]} Kh6 {[%emt 0:01:05]} 49. Rcc7 {[%emt 0:00:27]} Kh5 {[%emt 0:00:11]} 50. Kh3 {[%emt 0:03:02]} 1-0

[Event "Centenario Panaderia Pulido 2023"]
[Site "San Mateo Gran Canaria"]
[Date "2023.12.08"]
[Round "7.8"]
[White "Camino Carrio, Nicanor"]
[Black "Moreno Diepa, Diego"]
[Result "0-1"]
[ECO "C02"]
[WhiteElo "1948"]
[BlackElo "2138"]
[Annotator "RC"]
[PlyCount "72"]
[EventDate "2023.12.04"]
[EventType "swiss"]
[EventCountry "ESP"]
[SourceTitle "playchess.com"]
[Source "ChessBase"]
[SourceQuality "1"]
[TimeControl "5400+30"]

1. e4 {[%emt 0:00:11]} e6 {[%emt 0:00:17]} 2. d4 {[%emt 0:00:22]} d5 {[%emt 0:00:04]} 3. e5 {[%emt 0:00:14]} c5 {[%emt 0:00:04]} 4. c3 {[%emt 0:00:10]} Nc6 {[%emt 0:00:03]} 5. Nf3 {[%emt 0:00:13]} Bd7 {[%emt 0:00:08]} 6. Be2 {[%emt 0:00:28]} Nge7 {[%emt 0:00:25]} 7. O-O {[%emt 0:00:19]} cxd4 {[%emt 0:00:05]} 8. cxd4 {[%emt 0:00:05]} Nf5 {[%emt 0:00:04]} 9. Na3 {[%emt 0:01:00]} Be7 {[%emt 0:02:30]} 10. Nc2 {[%emt 0:00:26]} Qb6 {[%emt 0:02:59]} 11. g4 {[%emt 0:03:45]} Nh4 {[%emt 0:02:44]} 12. Nxh4 {[%emt 0:03:12]} Bxh4 {[%emt 0:00:08]} 13. Kh1 {[%emt 0:00:51]} Be7 {[%emt 0:05:34]} 14. Rb1 {[%emt 0:02:40]} a5 {[%emt 0:04:06]} 15. Be3 {[%emt 0:04:40]} Rc8 {[%emt 0:04:47]} 16. Ne1 {[%emt 0:01:43]} a4 {[%emt 0:03:24]} 17. g5 {[%emt 0:04:00]} g6 {[%emt 0:19:30]} 18. Nd3 {[%emt 0:00:08]} Nb4 {[%emt 0:10:15]} 19. Nc5 {[%emt 0:04:58]} Bxc5 {[%emt 0:01:57]} 20. dxc5 {[%emt 0:00:08]} Qc7 {[%emt 0:00:03]} 21. a3 {[%emt 0:01:59]} Nc6 {[%emt 0:00:46]} 22. Bb5 {[%emt 0:00:20]} d4 {[%emt 0:12:21]} 23. Bf4 {[%emt 0:00:31]} Ra8 {[%emt 0:00:37]} 24. Bxa4 {[%emt 0:05:19]} Ne7 {[%emt 0:00:16]} 25. Bxd7+ {[%emt 0:00:45]} Qxd7 {[%emt 0:00:05]} 26. Qf3 {[%emt 0:00:14]} O-O {[%emt 0:01:02]} 27. Rfd1 {[%emt 0:01:05]} Rfc8 {[%emt 0:01:34]} 28. b4 {[%emt 0:00:54]} Nf5 {[%emt 0:00:47]} 29. Bc1 {[%emt 0:00:32]} Qb5 {[%emt 0:04:01]} 30. Bb2 {[%emt 0:00:55]} Rd8 {[%emt 0:00:05]} 31. Rbc1 {[%emt 1:03:53]} Rd5 {[%emt 0:01:20]} 32. Qd3 {[%emt 0:00:00]} Qd7 {[%emt 0:04:02]} 33. b5 {[%emt 0:00:00]} Rc8 {[%emt 0:03:20]} 34. a4 {[%emt 0:00:00]} Rxe5 {[%emt 0:01:57]} 35. Ba3 {[%emt 0:00:00]} Qd5+ {[%emt 0:00:30]} 36. f3 {[%emt 0:00:00]} Re3 {[%emt 0:00:04]} 0-1

[Event "Centenario Panaderia Pulido 2023"]
[Site "San Mateo Gran Canaria"]
[Date "2023.12.08"]
[Round "7.9"]
[White "Marrero Cardenes, Agustin"]
[Black "Bergero, Simone"]
[Result "1-0"]
[ECO "A30"]
[WhiteElo "2106"]
[BlackElo "2010"]
[Annotator "RC"]
[PlyCount "85"]
[EventDate "2023.12.04"]
[EventType "swiss"]
[EventCountry "ESP"]
[SourceTitle "playchess.com"]
[Source "ChessBase"]
[SourceQuality "1"]
[TimeControl "5400+30"]

1. Nf3 {[%emt 0:00:03]} Nf6 {[%emt 0:05:38]} 2. b3 {[%emt 0:00:08]} d5 {[%emt 0:00:20]} 3. Bb2 {[%emt 0:00:08]} c5 {[%emt 0:00:29]} 4. e3 {[%emt 0:00:09]} Nc6 {[%emt 0:00:12]} 5. Be2 {[%emt 0:01:41]} g6 {[%emt 0:05:00]} 6. O-O {[%emt 0:00:51]} Bg7 {[%emt 0:00:04]} 7. c4 {[%emt 0:01:30]} O-O {[%emt 0:08:25]} 8. d3 {[%emt 0:03:43]} d4 {[%emt 0:03:04]} 9. exd4 {[%emt 0:05:40]} cxd4 {[%emt 0:00:14]} 10. Nbd2 {[%emt 0:01:32]} a5 {[%emt 0:08:29]} 11. a3 {[%emt 0:01:56]} e5 {[%emt 0:03:25]} 12. Re1 {[%emt 0:04:45]} Nd7 {[%emt 0:06:14]} 13. Bf1 {[%emt 0:07:19]} f5 {[%emt 0:03:09]} 14. Qb1 {[%emt 0:02:45]} g5 {[%emt 0:02:26]} 15. Rd1 {[%emt 0:30:21]} g4 {[%emt 0:11:29]} 16. Ne1 {[%emt 0:00:02]} Qg5 {[%emt 0:02:27]} 17. Be2 {[%emt 0:05:44]} Nc5 {[%emt 0:03:05]} 18. b4 {[%emt 0:00:54]} Ne6 {[%emt 0:00:04]} 19. Nf1 {[%emt 0:06:30]} Nf4 {[%emt 0:04:02]} 20. Rd2 {[%emt 0:01:09]} Rf6 {[%emt 0:09:49]} 21. Bc1 {[%emt 0:00:51]} axb4 {[%emt 0:01:20]} 22. axb4 {[%emt 0:00:11]} Rxa1 {[%emt 0:00:05]} 23. Qxa1 {[%emt 0:00:04]} Nxb4 {[%emt 0:00:20]} 24. Rb2 {[%emt 0:01:40]} Ra6 {[%emt 0:02:40]} 25. Qb1 {[%emt 0:01:11]} Nc6 {[%emt 0:00:04]} 26. Bd1 {[%emt 0:00:53]} Qe7 {[%emt 0:00:45]} 27. Rb5 {[%emt 0:01:22]} Ne6 {[%emt 0:03:54]} 28. Ng3 {[%emt 0:03:14]} Nc5 {[%emt 0:01:24]} 29. Bc2 {[%emt 0:03:06]} e4 {[%emt 0:02:52]} 30. Rxc5 {[%emt 0:04:14]} Qxc5 {[%emt 0:00:13]} 31. dxe4 {[%emt 0:00:05]} Qb4 {[%emt 0:00:49]} 32. Bb2 {[%emt 0:01:04]} Rb6 {[%emt 0:01:23]} 33. Nd3 {[%emt 0:00:57]} Qxc4 {[%emt 0:00:18]} 34. exf5 {[%emt 0:01:17]} Ne5 {[%emt 0:02:58]} 35. Nxe5 {[%emt 0:02:55]} Bxe5 {[%emt 0:00:02]} 36. Qc1 {[%emt 0:01:05]} Kf7 {[%emt 0:04:57]} 37. f6 {[%emt 0:02:40]} Bxg3 {[%emt 0:02:06]} 38. Bg6+ {[%emt 0:00:29]} Kxg6 {[%emt 0:00:56]} 39. Qxc4 {[%emt 0:00:05]} Be6 {[%emt 0:01:05]} 40. Qxd4 {[%emt 0:01:01]} Rd6 {[%emt 0:00:03]} 41. Qe4+ {[%emt 0:00:10]} Bf5 {[%emt 0:00:04]} 42. Qe8+ {[%emt 0:00:07]} Kg5 {[%emt 0:00:05]} 43. hxg3 {[%emt 0:00:12]} 1-0

[Event "Centenario Panaderia Pulido 2023"]
[Site "San Mateo Gran Canaria"]
[Date "2023.12.08"]
[Round "7.10"]
[White "Guerrero Orihuela, Jose Luis"]
[Black "Uzcategui Rodriguez, Alejandro"]
[Result "0-1"]
[ECO "A80"]
[WhiteElo "1901"]
[BlackElo "2235"]
[Annotator "RC"]
[PlyCount "52"]
[EventDate "2023.12.04"]
[EventType "swiss"]
[EventCountry "ESP"]
[SourceTitle "playchess.com"]
[Source "ChessBase"]
[SourceQuality "1"]
[TimeControl "5400+30"]

1. d4 {[%emt 0:00:04]} d6 {[%emt 0:00:00]} 2. Nf3 {[%emt 0:00:09]} f5 {[%emt 0:00:08]} 3. Bf4 {[%emt 0:01:05]} Nf6 {[%emt 0:00:42]} 4. Nc3 {[%emt 0:04:11]} g6 {[%emt 0:01:21]} 5. h4 {[%emt 0:00:08]} Bg7 {[%emt 0:00:49]} 6. e3 {[%emt 0:02:50]} e6 {[%emt 0:08:44]} 7. Bd3 {[%emt 0:06:10]} O-O {[%emt 0:02:13]} 8. Nh2 {[%emt 0:02:39]} Qe8 {[%emt 0:04:20]} 9. g4 {[%emt 0:12:29]} e5 {[%emt 0:03:05]} 10. dxe5 {[%emt 0:00:07]} dxe5 {[%emt 0:00:04]} 11. Bg5 {[%emt 0:00:05]} Nxg4 {[%emt 0:01:01]} 12. Nxg4 {[%emt 0:00:04]} fxg4 {[%emt 0:00:04]} 13. Nd5 {[%emt 0:00:13]} Qf7 {[%emt 0:04:03]} 14. Qe2 {[%emt 0:00:06]} Nc6 {[%emt 0:01:16]} 15. h5 {[%emt 0:05:25]} gxh5 {[%emt 0:04:52]} 16. c4 {[%emt 0:08:15]} e4 {[%emt 0:07:52]} 17. Bxe4 {[%emt 0:00:45]} Bf5 {[%emt 0:03:39]} 18. Bxf5 {[%emt 0:03:23]} Qxf5 {[%emt 0:00:04]} 19. Bf4 {[%emt 0:00:04]} Rae8 {[%emt 0:06:03]} 20. O-O-O {[%emt 0:04:28]} Nb4 {[%emt 0:02:19]} 21. Nxb4 {[%emt 0:03:24]} Qxf4 {[%emt 0:00:51]} 22. Rd2 {[%emt 0:00:02]} Qf5 {[%emt 0:07:20]} 23. Nd5 {[%emt 0:01:04]} c6 {[%emt 0:00:40]} 24. Nf4 {[%emt 0:00:04]} Qe4 {[%emt 0:07:24]} 25. Re1 {[%emt 0:00:36]} Rf5 {[%emt 0:01:57]} 26. Kd1 {[%emt 0:01:43]} Qb1# {[%emt 0:32:39]} 0-1

[Event "Centenario Panaderia Pulido 2023"]
[Site "San Mateo Gran Canaria"]
[Date "2023.12.08"]
[Round "7.11"]
[White "Rivero Reyes, Alejandro"]
[Black "Hernandez Leon, Alberto"]
[Result "0-1"]
[ECO "B56"]
[WhiteElo "1689"]
[BlackElo "2209"]
[Annotator "RC"]
[PlyCount "42"]
[EventDate "2023.12.04"]
[EventType "swiss"]
[EventCountry "ESP"]
[SourceTitle "playchess.com"]
[Source "ChessBase"]
[SourceQuality "1"]
[TimeControl "5400+30"]

1. e4 {[%emt 0:00:40]} c5 {[%emt 0:00:35]} 2. Nf3 {[%emt 0:00:07]} d6 {[%emt 0:00:12]} 3. d4 {[%emt 0:00:06]} cxd4 {[%emt 0:00:09]} 4. Nxd4 {[%emt 0:00:05]} e5 {[%emt 0:00:49]} 5. Bb5+ {[%emt 0:02:01]} Bd7 {[%emt 0:00:09]} 6. Bxd7+ {[%emt 0:00:32]} Qxd7 {[%emt 0:00:08]} 7. Nf5 {[%emt 0:00:19]} Nf6 {[%emt 0:00:17]} 8. Nc3 {[%emt 0:02:22]} Nxe4 {[%emt 0:00:57]} 9. Nxe4 {[%emt 0:00:15]} Qxf5 {[%emt 0:00:07]} 10. Nxd6+ {[%emt 0:00:11]} Bxd6 {[%emt 0:00:09]} 11. Qxd6 {[%emt 0:00:07]} Nc6 {[%emt 0:02:27]} 12. Be3 {[%emt 0:07:16]} Qxc2 {[%emt 0:07:08]} 13. O-O {[%emt 0:09:29]} Rd8 {[%emt 0:21:43]} 14. Qa3 {[%emt 0:04:22]} Qd3 {[%emt 0:04:47]} 15. b3 {[%emt 0:01:26]} f6 {[%emt 0:01:34]} 16. g3 {[%emt 0:08:35]} Kf7 {[%emt 0:02:26]} 17. Rfd1 {[%emt 0:01:18]} Qe2 {[%emt 0:02:05]} 18. Rd6 {[%emt 0:01:01]} h5 {[%emt 0:05:09]} 19. h4 {[%emt 0:02:06]} Kg6 {[%emt 0:01:50]} 20. Rad1 {[%emt 0:01:17]} Nd4 {[%emt 0:04:28]} 21. R1xd4 {[%emt 0:04:45]} exd4 {[%emt 0:00:17]} 0-1

[Event "Centenario Panaderia Pulido 2023"]
[Site "San Mateo Gran Canaria"]
[Date "2023.12.08"]
[Round "7.12"]
[White "Mamani Beltran, Deniman"]
[Black "Garcia Rodriguez, Adriana"]
[Result "1/2-1/2"]
[ECO "B20"]
[WhiteElo "2151"]
[BlackElo "1659"]
[Annotator "RC"]
[PlyCount "34"]
[EventDate "2023.12.04"]
[EventType "swiss"]
[EventCountry "ESP"]
[SourceTitle "playchess.com"]
[Source "ChessBase"]
[SourceQuality "1"]
[TimeControl "5400+30"]

1. e4 {[%emt 0:00:03]} e6 {[%emt 0:00:04]} 2. b3 {[%emt 0:00:10]} d5 {[%emt 0:00:10]} 3. Bb2 {[%emt 0:00:05]} c5 {[%emt 0:00:09]} 4. Nc3 {[%emt 0:00:56]} Nc6 {[%emt 0:01:03]} 5. Nf3 {[%emt 0:00:22]} d4 {[%emt 0:01:56]} 6. Nb1 {[%emt 0:00:06]} Nf6 {[%emt 0:00:11]} 7. e5 {[%emt 0:01:28]} Nd5 {[%emt 0:03:12]} 8. Bb5 {[%emt 0:00:23]} Bd7 {[%emt 0:00:30]} 9. Bc4 {[%emt 0:01:59]} Nf4 {[%emt 0:01:45]} 10. O-O {[%emt 0:00:20]} a6 {[%emt 0:00:39]} 11. g3 {[%emt 0:00:44]} Ng6 {[%emt 0:03:30]} 12. Re1 {[%emt 0:00:12]} Qc7 {[%emt 0:00:19]} 13. Qe2 {[%emt 0:00:39]} Nb4 {[%emt 0:01:44]} 14. Na3 {[%emt 0:03:00]} b5 {[%emt 0:00:48]} 15. c3 {[%emt 0:01:23]} bxc4 {[%emt 0:01:30]} 16. cxb4 {[%emt 0:00:05]} c3 {[%emt 0:00:28]} 17. Bc1 {[%emt 1:27:05]} Bc8 {[%emt 1:21:02]} 1/2-1/2

[Event "Centenario Panaderia Pulido 2023"]
[Site "San Mateo Gran Canaria"]
[Date "2023.12.08"]
[Round "7.13"]
[White "Quevedo Olivares, Carlos Tomas"]
[Black "Medina Martin, Alberto"]
[Result "0-1"]
[ECO "C02"]
[WhiteElo "1555"]
[BlackElo "2105"]
[Annotator "RC"]
[PlyCount "101"]
[EventDate "2023.12.04"]
[EventType "swiss"]
[EventCountry "ESP"]
[SourceTitle "playchess.com"]
[Source "ChessBase"]
[SourceQuality "1"]
[TimeControl "5400+30"]

1. e4 {[%emt 0:00:11]} e6 {[%emt 0:00:30]} 2. d4 {[%emt 0:01:54]} d5 {[%emt 0:00:07]} 3. e5 {[%emt 0:00:06]} c5 {[%emt 0:00:04]} 4. c3 {[%emt 0:00:06]} Nc6 {[%emt 0:00:06]} 5. Nf3 {[%emt 0:00:13]} Bd7 {[%emt 0:00:06]} 6. Bd3 {[%emt 0:00:07]} cxd4 {[%emt 0:00:06]} 7. O-O {[%emt 0:00:12]} dxc3 {[%emt 0:00:12]} 8. Nxc3 {[%emt 0:00:09]} Nge7 {[%emt 0:00:08]} 9. Bg5 {[%emt 0:00:40]} Qb8 {[%emt 0:00:26]} 10. Re1 {[%emt 0:02:41]} Ng6 {[%emt 0:00:19]} 11. Rc1 {[%emt 0:04:36]} a6 {[%emt 0:00:49]} 12. a3 {[%emt 0:09:04]} Be7 {[%emt 0:02:14]} 13. Bxe7 {[%emt 0:02:42]} Ncxe7 {[%emt 0:00:26]} 14. h4 {[%emt 0:06:14]} Nc6 {[%emt 0:09:41]} 15. Qb3 {[%emt 0:10:32]} b5 {[%emt 0:04:20]} 16. Nxd5 {[%emt 0:02:33]} exd5 {[%emt 0:00:17]} 17. e6 {[%emt 0:02:50]} fxe6 {[%emt 0:00:19]} 18. Bxg6+ {[%emt 0:01:05]} hxg6 {[%emt 0:00:02]} 19. Rxc6 {[%emt 0:09:07]} Bxc6 {[%emt 0:00:51]} 20. Rxe6+ {[%emt 0:00:09]} Kd7 {[%emt 0:00:14]} 21. Rxg6 {[%emt 0:00:57]} Qe8 {[%emt 0:05:11]} 22. Qc3 {[%emt 0:00:58]} Qxg6 {[%emt 0:03:30]} 23. Ne5+ {[%emt 0:00:11]} Kd6 {[%emt 0:00:15]} 24. Qxc6+ {[%emt 0:01:26]} Kxe5 {[%emt 0:00:05]} 25. Qxg6 {[%emt 0:00:08]} Rhg8 {[%emt 0:00:24]} 26. Qg5+ {[%emt 0:02:04]} Kd6 {[%emt 0:00:12]} 27. Qf4+ {[%emt 0:00:59]} Kc6 {[%emt 0:00:17]} 28. g4 {[%emt 0:01:53]} Rad8 {[%emt 0:00:13]} 29. Qd4 {[%emt 0:00:32]} Rd7 {[%emt 0:00:23]} 30. a4 {[%emt 0:04:41]} Rb8 {[%emt 0:00:15]} 31. f4 {[%emt 0:00:32]} bxa4 {[%emt 0:02:05]} 32. Qxa4+ {[%emt 0:00:15]} Kc7 {[%emt 0:01:18]} 33. Qa5+ {[%emt 0:01:45]} Rb6 {[%emt 0:01:45]} 34. Qc3+ {[%emt 0:01:16]} Rc6 {[%emt 0:00:13]} 35. Qd4 {[%emt 0:00:28]} Kb7 {[%emt 0:01:14]} 36. f5 {[%emt 0:03:53]} Rc4 {[%emt 0:00:19]} 37. Qd1 {[%emt 0:00:11]} Kc6 {[%emt 0:00:15]} 38. b3 {[%emt 0:01:23]} Rb4 {[%emt 0:01:54]} 39. Qf3 {[%emt 0:02:17]} Re4 {[%emt 0:02:29]} 40. f6 {[%emt 0:01:31]} gxf6 {[%emt 0:00:51]} 41. Qxf6+ {[%emt 0:00:17]} Rd6 {[%emt 0:01:30]} 42. Qf5 {[%emt 0:02:08]} Rde6 {[%emt 0:05:52]} 43. h5 {[%emt 0:01:32]} Kd6 {[%emt 0:03:31]} 44. Qf3 {[%emt 0:02:29]} d4 {[%emt 0:02:26]} 45. g5 {[%emt 0:00:41]} Re3 {[%emt 0:02:43]} 46. Qf4+ {[%emt 0:00:56]} Kd5 {[%emt 0:00:18]} 47. Qf5+ {[%emt 0:04:13]} R6e5 {[%emt 0:00:12]} 48. Qf7+ {[%emt 0:00:32]} Ke4 {[%emt 0:00:31]} 49. Qh7+ {[%emt 0:04:12]} Kf4 {[%emt 0:00:33]} 50. g6 {[%emt 0:00:40]} Re1+ {[%emt 0:00:06]} 51. Kg2 {[%emt 0:15:49]} 0-1

[Event "Centenario Panaderia Pulido 2023"]
[Site "San Mateo Gran Canaria"]
[Date "2023.12.08"]
[Round "7.14"]
[White "Almenares Garcia, Mario Adrian"]
[Black "Gonzalez Martinez, Miguel Angel"]
[Result "0-1"]
[ECO "A22"]
[WhiteElo "2000"]
[BlackElo "2158"]
[Annotator "RC"]
[PlyCount "86"]
[EventDate "2023.12.04"]
[EventType "swiss"]
[EventCountry "ESP"]
[SourceTitle "playchess.com"]
[Source "ChessBase"]
[SourceQuality "1"]
[TimeControl "5400+30"]

1. d4 {[%emt 0:00:48]} d6 {[%emt 0:00:15]} 2. c4 {[%emt 0:00:14]} e5 {[%emt 0:00:06]} 3. e3 {[%emt 0:01:33]} c6 {[%emt 0:00:25]} 4. Nc3 {[%emt 0:00:09]} Qc7 {[%emt 0:00:43]} 5. Nf3 {[%emt 0:00:17]} Nf6 {[%emt 0:00:08]} 6. Be2 {[%emt 0:00:21]} Be7 {[%emt 0:00:07]} 7. O-O {[%emt 1:30:38]} a5 {[%emt 0:00:05]} 8. b3 {[%emt 0:00:00]} h6 {[%emt 0:01:34]} 9. Bb2 {[%emt 0:00:00]} Bf5 {[%emt 0:00:42]} 10. Rc1 {[%emt 0:00:00]} O-O {[%emt 0:00:47]} 11. c5 {[%emt 0:00:00]} dxc5 {[%emt 0:10:37]} 12. Nxe5 {[%emt 0:00:00]} Nbd7 {[%emt 0:05:13]} 13. Na4 {[%emt 0:00:00]} Nxe5 {[%emt 0:09:56]} 14. dxe5 {[%emt 0:00:00]} Rfd8 {[%emt 0:00:41]} 15. Qe1 {[%emt 0:00:00]} Nd7 {[%emt 0:06:09]} 16. f4 {[%emt 0:00:00]} b5 {[%emt 0:12:09]} 17. Nc3 {[%emt 0:00:00]} Nf8 {[%emt 0:00:29]} 18. e4 {[%emt 0:00:00]} Bh7 {[%emt 0:00:19]} 19. Nd1 {[%emt 0:00:00]} Bxe4 {[%emt 0:03:11]} 20. Bg4 {[%emt 0:00:00]} Bd3 {[%emt 0:02:00]} 21. Rf3 {[%emt 0:00:00]} c4 {[%emt 0:00:21]} 22. Kh1 {[%emt 0:00:00]} Bb4 {[%emt 0:05:02]} 23. Nc3 {[%emt 0:00:00]} Bxc3 {[%emt 0:02:13]} 24. Rxc3 {[%emt 0:00:00]} b4 {[%emt 0:00:09]} 25. Rxc4 {[%emt 0:00:00]} Bxc4 {[%emt 0:00:02]} 26. bxc4 {[%emt 0:00:00]} Qe7 {[%emt 0:03:21]} 27. h3 {[%emt 0:00:00]} Ne6 {[%emt 0:07:41]} 28. Bxe6 {[%emt 0:00:00]} Qxe6 {[%emt 0:00:17]} 29. Qc1 {[%emt 0:00:00]} Qd7 {[%emt 0:01:00]} 30. Rf1 {[%emt 0:00:00]} Qd2 {[%emt 0:01:26]} 31. Qb1 {[%emt 0:00:00]} Qe2 {[%emt 0:01:03]} 32. Re1 {[%emt 0:00:00]} Qxc4 {[%emt 0:00:36]} 33. e6 {[%emt 0:00:00]} fxe6 {[%emt 0:01:28]} 34. Qg6 {[%emt 0:00:00]} Ra7 {[%emt 0:00:27]} 35. Re4 {[%emt 0:00:00]} Qxa2 {[%emt 0:04:52]} 36. Bd4 {[%emt 0:00:00]} Rxd4 {[%emt 0:01:07]} 37. f5 {[%emt 0:00:00]} Rd8 {[%emt 0:06:01]} 38. Rxe6 {[%emt 0:00:00]} Rf7 {[%emt 0:00:37]} 39. Kh2 {[%emt 0:00:00]} Qc2 {[%emt 0:00:43]} 40. Re5 {[%emt 0:00:00]} b3 {[%emt 0:00:44]} 41. Qe6 {[%emt 0:00:00]} b2 {[%emt 0:01:36]} 42. f6 {[%emt 0:00:00]} b1=Q {[%emt 0:01:11]} 43. fxg7 {[%emt 0:00:00]} Qbb2 {[%emt 0:00:43]} 0-1